[Event "Titled Tuesday Blitz May 2 Early 2023"]
[White "Flis, Pawel"]
[Black "Buscar, Michael"]
[WhiteFideId "1112864"]
[BlackFideId "2603616"]
[WhiteElo "1822"]
[BlackElo "2010"]
[Result "1-0"]
[Round "09"]
[TimeControl "180+2"]
[Date "2023.05.02"]
[WhiteClock "0:00:33"]
[BlackClock "0:02:14"]

1. e4 {[%clk 0:03:00]}  c5 {[%clk 0:02:58]} 2. Nf3 {[%clk 0:03:00]}  Nc6 {[%clk 0:02:59]} 3. d4 {[%clk 0:03:00]}  cxd4 {[%clk 0:03:00]} 4. Nxd4 {[%clk 0:03:00]}  Nf6 {[%clk 0:03:01]} 5. Nc3 {[%clk 0:03:01]}  e5 {[%clk 0:03:02]} 6. Ndb5 {[%clk 0:03:01]}  h6 {[%clk 0:03:02]} 7. Nd6+ {[%clk 0:02:58]}  Bxd6 {[%clk 0:03:03]} 8. Qxd6 {[%clk 0:02:58]}  Qe7 {[%clk 0:03:03]} 9. Qc7 {[%clk 0:02:58]}  O-O {[%clk 0:03:03]} 10. Bd3 {[%clk 0:02:46]}  Ne8 {[%clk 0:03:01]} 11. Nd5 {[%clk 0:02:32]}  Qc5 {[%clk 0:02:54]} 12. Be3 {[%clk 0:01:59]}  Qxd5 {[%clk 0:02:42]} 13. exd5 {[%clk 0:01:43]}  Nxc7 {[%clk 0:02:40]} 14. dxc6 {[%clk 0:01:44]}  dxc6 {[%clk 0:02:39]} 15. Bc5 {[%clk 0:01:36]}  Re8 {[%clk 0:02:37]} 16. O-O-O {[%clk 0:01:34]}  b6 {[%clk 0:02:35]} 17. Bd6 {[%clk 0:01:32]}  Ne6 {[%clk 0:02:34]} 18. Bxe5 {[%clk 0:01:25]}  Nc5 {[%clk 0:02:31]} 19. Bd4 {[%clk 0:01:16]}  Nxd3+ {[%clk 0:02:30]} 20. Rxd3 {[%clk 0:01:16]}  c5 {[%clk 0:02:31]} 21. Be3 {[%clk 0:01:15]}  Bb7 {[%clk 0:02:30]} 22. f3 {[%clk 0:01:07]}  Rad8 {[%clk 0:02:29]} 23. Rxd8 {[%clk 0:01:04]}  Rxd8 {[%clk 0:02:29]} 24. Rd1 {[%clk 0:01:04]}  Re8 {[%clk 0:02:24]} 25. Re1 {[%clk 0:01:04]}  f5 {[%clk 0:02:22]} 26. Bd2 {[%clk 0:01:03]}  Kf7 {[%clk 0:02:20]} 27. Rxe8 {[%clk 0:01:02]}  Kxe8 {[%clk 0:02:21]} 28. Bf4 {[%clk 0:01:00]}  Kd7 {[%clk 0:02:18]} 29. Kd2 {[%clk 0:00:59]}  g5 {[%clk 0:02:18]} 30. Bb8 {[%clk 0:00:57]}  Bd5 {[%clk 0:02:12]} 31. b3 {[%clk 0:00:45]}  h5 {[%clk 0:02:06]} 32. c4 {[%clk 0:00:42]}  Bc6 {[%clk 0:02:05]} 33. a4 {[%clk 0:00:37]}  a6 {[%clk 0:02:03]} 34. Be5 {[%clk 0:00:35]}  g4 {[%clk 0:01:40]} 35. fxg4 {[%clk 0:00:32]}  hxg4 {[%clk 0:01:35]} 36. g3 {[%clk 0:00:32]}  b5 {[%clk 0:01:33]} 37. axb5 {[%clk 0:00:31]}  axb5 {[%clk 0:01:33]} 38. cxb5 {[%clk 0:00:32]}  Bxb5 {[%clk 0:01:34]} 39. Kc3 {[%clk 0:00:31]}  Ke6 {[%clk 0:01:33]} 40. Bf4 {[%clk 0:00:30]}  Kd5 {[%clk 0:01:33]} 41. Bg5 {[%clk 0:00:20]}  Bf1 {[%clk 0:01:30]} 42. Be7 {[%clk 0:00:19]}  Be2 {[%clk 0:01:26]} 43. Kd2 {[%clk 0:00:18]}  Bf3 {[%clk 0:01:24]} 44. Kc3 {[%clk 0:00:17]}  Bd1 {[%clk 0:01:24]} 45. Bf8 {[%clk 0:00:16]}  Kc6 {[%clk 0:01:22]} 46. Be7 {[%clk 0:00:16]}  Kb5 {[%clk 0:01:22]} 47. Bf8 {[%clk 0:00:17]}  Bf3 {[%clk 0:01:19]} 48. Be7 {[%clk 0:00:17]}  Bd5 {[%clk 0:01:19]} 49. Bf8 {[%clk 0:00:17]}  Kc6 {[%clk 0:01:19]} 50. Be7 {[%clk 0:00:18]}  Be6 {[%clk 0:01:19]} 51. Bf8 {[%clk 0:00:18]}  Kd5 {[%clk 0:01:20]} 52. Be7 {[%clk 0:00:18]}  Kc6 {[%clk 0:01:19]} 53. Bf8 {[%clk 0:00:18]}  Kb5 {[%clk 0:01:19]} 54. Be7 {[%clk 0:00:18]}  c4 {[%clk 0:01:20]} 55. bxc4+ {[%clk 0:00:18]}  Bxc4 {[%clk 0:01:20]} 56. Kd4 {[%clk 0:00:18]}  Ba2 {[%clk 0:01:19]} 57. Ke5 {[%clk 0:00:19]}  Bb1 {[%clk 0:01:20]} 58. Kf4 {[%clk 0:00:19]}  Kc4 {[%clk 0:01:20]} 59. Ke3 {[%clk 0:00:18]}  Kd5 {[%clk 0:01:19]} 60. Kf2 {[%clk 0:00:18]}  Ke4 {[%clk 0:01:19]} 61. Kg1 {[%clk 0:00:18]}  Kf3 {[%clk 0:01:20]} 62. Bd6 {[%clk 0:00:18]}  Be4 {[%clk 0:01:19]} 63. Bf4 {[%clk 0:00:18]}  Ke2 {[%clk 0:01:20]} 64. Bc7 {[%clk 0:00:19]}  Kd3 {[%clk 0:01:20]} 65. Bf4 {[%clk 0:00:19]}  Kc4 {[%clk 0:01:21]} 66. Bc7 {[%clk 0:00:20]}  Kd5 {[%clk 0:01:22]} 67. Bf4 {[%clk 0:00:20]}  Ke6 {[%clk 0:01:22]} 68. Bb8 {[%clk 0:00:20]}  Kf6 {[%clk 0:01:23]} 69. Bf4 {[%clk 0:00:21]}  Ke6 {[%clk 0:01:24]} 70. Bb8 {[%clk 0:00:21]}  Kd5 {[%clk 0:01:25]} 71. Bf4 {[%clk 0:00:22]}  Bd3 {[%clk 0:01:25]} 72. Bb8 {[%clk 0:00:22]}  Ke4 {[%clk 0:01:26]} 73. Bf4 {[%clk 0:00:23]}  Kf3 {[%clk 0:01:27]} 74. Bb8 {[%clk 0:00:23]}  Bb5 {[%clk 0:01:28]} 75. Bf4 {[%clk 0:00:23]}  Bd7 {[%clk 0:01:29]} 76. Bd6 {[%clk 0:00:24]}  Bc6 {[%clk 0:01:29]} 77. Bf4 {[%clk 0:00:24]}  Ke2 {[%clk 0:01:29]} 78. Bb8 {[%clk 0:00:25]}  Bf3 {[%clk 0:01:29]} 79. Bf4 {[%clk 0:00:26]}  Ke1 {[%clk 0:01:29]} 80. Bc7 {[%clk 0:00:26]}  Be2 {[%clk 0:01:30]} 81. Bf4 {[%clk 0:00:27]}  Bf1 {[%clk 0:01:30]} 82. Bd6 {[%clk 0:00:27]}  Bh3 {[%clk 0:01:29]} 83. Bc7 {[%clk 0:00:27]}  Ke2 {[%clk 0:01:30]} 84. Bd6 {[%clk 0:00:28]}  Kf3 {[%clk 0:01:31]} 85. Bc7 {[%clk 0:00:29]}  Ke4 {[%clk 0:01:32]} 86. Bd6 {[%clk 0:00:29]}  Kf3 {[%clk 0:01:33]} 87. Bb8 {[%clk 0:00:30]}  Ke2 {[%clk 0:01:33]} 88. Bc7 {[%clk 0:00:31]}  Ke3 {[%clk 0:01:33]} 89. Bb8 {[%clk 0:00:31]}  Ke2 {[%clk 0:01:34]} 90. Bc7 {[%clk 0:00:32]}  Kd3 {[%clk 0:01:34]} 91. Bb8 {[%clk 0:00:33]}  Ke4 {[%clk 0:01:35]} 92. Bc7 {[%clk 0:00:33]}  Kd4 {[%clk 0:01:35]} 93. Bb8 {[%clk 0:00:34]}  Ke4 {[%clk 0:01:36]} 94. Bc7 {[%clk 0:00:35]}  f4 {[%clk 0:01:37]} 95. Bb8 {[%clk 0:00:36]}  f3 {[%clk 0:01:37]} 96. Bc7 {[%clk 0:00:36]}  Ke3 {[%clk 0:01:38]} 97. Bb6+ {[%clk 0:00:35]}  Ke2 {[%clk 0:01:38]} 98. Bf2 {[%clk 0:00:34]}  Kd2 {[%clk 0:01:38]} 99. Bc5 {[%clk 0:00:33]}  Ke1 {[%clk 0:01:39]} 100. Bf2+ {[%clk 0:00:33]}  Ke2 {[%clk 0:01:39]} 101. Bd4 {[%clk 0:00:33]}  Kd3 {[%clk 0:01:39]} 102. Bf2 {[%clk 0:00:34]}  Ke4 {[%clk 0:01:40]} 103. Bc5 {[%clk 0:00:33]}  Kd5 {[%clk 0:01:41]} 104. Ba7 {[%clk 0:00:33]}  Kc6 {[%clk 0:01:41]} 105. Kf2 {[%clk 0:00:33]}  Kb7 {[%clk 0:01:41]} 106. Be3 {[%clk 0:00:33]}  Kc7 {[%clk 0:01:41]} 107. Bf4+ {[%clk 0:00:33]}  Kd7 {[%clk 0:01:42]} 108. Be3 {[%clk 0:00:34]}  Ke6 {[%clk 0:01:43]} 109. Bf4 {[%clk 0:00:34]}  Kf5 {[%clk 0:01:44]} 110. Be3 {[%clk 0:00:35]}  Kg6 {[%clk 0:01:44]} 111. Bf4 {[%clk 0:00:36]}  Kf5 {[%clk 0:01:44]} 112. Be3 {[%clk 0:00:37]}  Ke4 {[%clk 0:01:45]} 113. Bf4 {[%clk 0:00:37]}  Kd3 {[%clk 0:01:46]} 114. Be3 {[%clk 0:00:38]}  Bf1 {[%clk 0:01:45]} 115. Bf4 {[%clk 0:00:39]}  Be2 {[%clk 0:01:46]} 116. Be3 {[%clk 0:00:39]}  Bd1 {[%clk 0:01:47]} 117. Bf4 {[%clk 0:00:40]}  Bb3 {[%clk 0:01:47]} 118. Be3 {[%clk 0:00:41]}  Be6 {[%clk 0:01:48]} 119. Bf4 {[%clk 0:00:41]}  Ke4 {[%clk 0:01:49]} 120. Be3 {[%clk 0:00:42]}  Kf5 {[%clk 0:01:49]} 121. Bf4 {[%clk 0:00:43]}  Bd5 {[%clk 0:01:50]} 122. Be3 {[%clk 0:00:44]}  Bc6 {[%clk 0:01:50]} 123. Bf4 {[%clk 0:00:45]}  Ba8 {[%clk 0:01:51]} 124. Be3 {[%clk 0:00:46]}  Bb7 {[%clk 0:01:52]} 125. Bf4 {[%clk 0:00:46]}  Bc8 {[%clk 0:01:53]} 126. Be3 {[%clk 0:00:47]}  Be6 {[%clk 0:01:54]} 127. Bf4 {[%clk 0:00:48]}  Bf7 {[%clk 0:01:55]} 128. Be3 {[%clk 0:00:49]}  Bg8 {[%clk 0:01:55]} 129. Bf4 {[%clk 0:00:50]}  Bh7 {[%clk 0:01:56]} 130. Be3 {[%clk 0:00:50]}  Bg6 {[%clk 0:01:57]} 131. Bf4 {[%clk 0:00:51]}  Bh5 {[%clk 0:01:58]} 132. Be3 {[%clk 0:00:52]}  Ke4 {[%clk 0:01:59]} 133. Bf4 {[%clk 0:00:52]}  Bg6 {[%clk 0:02:00]} 134. Be3 {[%clk 0:00:53]}  Bf5 {[%clk 0:02:01]} 135. Bf4 {[%clk 0:00:54]}  Be6 {[%clk 0:02:02]} 136. Be3 {[%clk 0:00:55]}  Bd5 {[%clk 0:02:03]} 137. Bf4 {[%clk 0:00:55]}  Bc4 {[%clk 0:02:03]} 138. Be3 {[%clk 0:00:56]}  Bd3 {[%clk 0:02:04]} 139. Bf4 {[%clk 0:00:57]}  Be2 {[%clk 0:02:05]} 140. Be3 {[%clk 0:00:58]}  Bf1 {[%clk 0:02:06]} 141. Bf4 {[%clk 0:00:58]}  Bg2 {[%clk 0:02:07]} 142. Be3 {[%clk 0:00:59]}  Bh3 {[%clk 0:02:08]} 143. Bf4 {[%clk 0:00:59]}  Bg2 {[%clk 0:02:09]} 144. Bc7 {[%clk 0:00:59]}  Bf1 {[%clk 0:02:10]} 145. Kxf1 {[%clk 0:00:58]}  Kd5 {[%clk 0:02:07]} 146. Kf2 {[%clk 0:00:57]}  Kc6 {[%clk 0:02:07]} 147. Bb8 {[%clk 0:00:57]}  Kb7 {[%clk 0:02:07]} 148. Bf4 {[%clk 0:00:57]}  Kc6 {[%clk 0:02:08]} 149. Be3 {[%clk 0:00:57]}  Kd5 {[%clk 0:02:09]} 150. Ba7 {[%clk 0:00:57]}  Ke4 {[%clk 0:02:10]} 151. Bb6 {[%clk 0:00:57]}  Kf5 {[%clk 0:02:11]} 152. Be3 {[%clk 0:00:56]}  Ke4 {[%clk 0:02:12]} 153. Bc5 {[%clk 0:00:55]}  Kd3 {[%clk 0:02:13]} 154. Bb6 {[%clk 0:00:54]}  Ke4 {[%clk 0:02:13]} 155. Bc7 {[%clk 0:00:54]}  Kd3 {[%clk 0:02:14]} 156. Bf4 {[%clk 0:00:53]}  Ke4 {[%clk 0:02:14]} 157. Bc1 {[%clk 0:00:50]}  Kd3 {[%clk 0:02:15]} 158. Bb2 {[%clk 0:00:48]}  Ke4 {[%clk 0:02:15]} 159. Ba3 {[%clk 0:00:47]}  Kd3 {[%clk 0:02:16]} 160. Bc5 {[%clk 0:00:47]}  Ke4 {[%clk 0:02:16]} 161. Ke1 {[%clk 0:00:46]}  Kd3 {[%clk 0:02:16]} 162. Bf2 {[%clk 0:00:46]}  Kc3 {[%clk 0:02:16]} 163. Kd1 {[%clk 0:00:44]}  Kd3 {[%clk 0:02:16]} 164. Ke1 {[%clk 0:00:44]}  Kc2 {[%clk 0:02:16]} 165. Be3 {[%clk 0:00:43]}  Kd3 {[%clk 0:02:16]} 166. Bf4 {[%clk 0:00:43]}  Kc3 {[%clk 0:02:16]} 167. Kf2 {[%clk 0:00:42]}  Kd3 {[%clk 0:02:16]} 168. h4 {[%clk 0:00:40]}  Ke4 {[%clk 0:02:14]} 169. Bd2 {[%clk 0:00:37]}  Kf5 {[%clk 0:02:14]} 170. Ke3 {[%clk 0:00:36]}  Kg6 {[%clk 0:02:14]} 171. Be1 {[%clk 0:00:33]}  Kh5 {[%clk 0:02:14]} 172. Kf4 {[%clk 0:00:33]} 1-0


[Site "https://www.chess.com"]

[Event "Titled Tuesday Blitz May 2 Early 2023"]
[White "Kornyukov, Alexey"]
[Black "Schut, Han"]
[WhiteFideId "4150457"]
[BlackFideId "1005561"]
[WhiteElo "2352"]
[BlackElo "2024"]
[Result "1-0"]
[Round "09"]
[TimeControl "180+2"]
[Date "2023.05.02"]
[WhiteClock "0:01:00"]
[BlackClock "0:01:15"]

1. e4 {[%clk 0:03:00]}  c5 {[%clk 0:02:54]} 2. Nf3 {[%clk 0:03:00]}  d6 {[%clk 0:02:55]} 3. c3 {[%clk 0:02:58]}  Nf6 {[%clk 0:02:54]} 4. Be2 {[%clk 0:02:56]}  e6 {[%clk 0:02:53]} 5. O-O {[%clk 0:02:53]}  Nc6 {[%clk 0:02:53]} 6. d4 {[%clk 0:02:51]}  cxd4 {[%clk 0:02:54]} 7. cxd4 {[%clk 0:02:50]}  d5 {[%clk 0:02:51]} 8. e5 {[%clk 0:02:49]}  Ne4 {[%clk 0:02:51]} 9. Nc3 {[%clk 0:02:40]}  Nxc3 {[%clk 0:02:47]} 10. bxc3 {[%clk 0:02:39]}  Be7 {[%clk 0:02:48]} 11. Be3 {[%clk 0:02:36]}  Na5 {[%clk 0:02:42]} 12. Bb5+ {[%clk 0:02:31]}  Bd7 {[%clk 0:02:39]} 13. Bxd7+ {[%clk 0:02:16]}  Qxd7 {[%clk 0:02:38]} 14. Nd2 {[%clk 0:02:01]}  Rc8 {[%clk 0:02:36]} 15. Rc1 {[%clk 0:01:57]}  Nc4 {[%clk 0:02:31]} 16. Nxc4 {[%clk 0:01:54]}  Rxc4 {[%clk 0:02:32]} 17. Qg4 {[%clk 0:01:49]}  g6 {[%clk 0:02:28]} 18. Bg5 {[%clk 0:01:48]}  h5 {[%clk 0:02:22]} 19. Qf4 {[%clk 0:01:46]}  Bxg5 {[%clk 0:02:19]} 20. Qxg5 {[%clk 0:01:45]}  Qe7 {[%clk 0:02:19]} 21. Qd2 {[%clk 0:01:42]}  O-O {[%clk 0:02:17]} 22. Rfe1 {[%clk 0:01:37]}  Kg7 {[%clk 0:02:08]} 23. Re3 {[%clk 0:01:33]}  Rfc8 {[%clk 0:02:06]} 24. Rf3 {[%clk 0:01:32]}  b5 {[%clk 0:02:05]} 25. Rf6 {[%clk 0:01:14]}  b4 {[%clk 0:01:58]} 26. Rf3 {[%clk 0:01:13]}  a5 {[%clk 0:01:51]} 27. h3 {[%clk 0:01:08]}  Qc7 {[%clk 0:01:38]} 28. Qf4 {[%clk 0:01:07]}  bxc3 {[%clk 0:01:34]} 29. Qf6+ {[%clk 0:01:06]}  Kg8 {[%clk 0:01:35]} 30. g4 {[%clk 0:01:03]}  hxg4 {[%clk 0:01:15]} 31. hxg4 {[%clk 0:01:00]}  Qd8 {[%clk 0:01:15]} 32. Qxf7+ {[%clk 0:01:00]} 1-0


[Site "https://www.chess.com"]

[Event "Titled Tuesday Blitz May 2 Early 2023"]
[White "Vargas, Mauricio"]
[Black "Barria Santos, Jose Guilherme"]
[WhiteFideId "4404572"]
[BlackFideId "1939300"]
[WhiteElo "1998"]
[BlackElo "2266"]
[Result "0-1"]
[Round "09"]
[TimeControl "180+2"]
[Date "2023.05.02"]
[WhiteClock "0:00:08"]
[BlackClock "0:01:16"]

1. e4 {[%clk 0:02:58]}  c5 {[%clk 0:02:46]} 2. Nc3 {[%clk 0:02:54]}  d6 {[%clk 0:02:46]} 3. f4 {[%clk 0:02:54]}  g6 {[%clk 0:02:46]} 4. Nf3 {[%clk 0:02:54]}  Bg7 {[%clk 0:02:47]} 5. Bb5+ {[%clk 0:02:54]}  Bd7 {[%clk 0:02:47]} 6. Bxd7+ {[%clk 0:02:54]}  Qxd7 {[%clk 0:02:48]} 7. d3 {[%clk 0:02:55]}  Nc6 {[%clk 0:02:48]} 8. O-O {[%clk 0:02:56]}  e6 {[%clk 0:02:48]} 9. Ne2 {[%clk 0:02:50]}  Nge7 {[%clk 0:02:49]} 10. c3 {[%clk 0:02:48]}  O-O {[%clk 0:02:49]} 11. Qe1 {[%clk 0:02:45]}  b5 {[%clk 0:02:49]} 12. Qh4 {[%clk 0:02:45]}  Rab8 {[%clk 0:02:47]} 13. f5 {[%clk 0:02:41]}  exf5 {[%clk 0:02:47]} 14. Bh6 {[%clk 0:02:41]}  f6 {[%clk 0:02:07]} 15. Rad1 {[%clk 0:02:00]}  Ne5 {[%clk 0:02:01]} 16. Bxg7 {[%clk 0:01:46]}  Kxg7 {[%clk 0:02:01]} 17. Ne1 {[%clk 0:01:08]}  fxe4 {[%clk 0:01:55]} 18. dxe4 {[%clk 0:01:07]}  Qe6 {[%clk 0:01:52]} 19. Nd3 {[%clk 0:01:04]}  Nxd3 {[%clk 0:01:48]} 20. Rxd3 {[%clk 0:01:02]}  d5 {[%clk 0:01:49]} 21. Nf4 {[%clk 0:00:55]}  Qxe4 {[%clk 0:01:46]} 22. Re1 {[%clk 0:00:52]}  Nf5 {[%clk 0:01:30]} 23. Rxe4 {[%clk 0:00:20]}  Nxh4 {[%clk 0:01:29]} 24. Ne6+ {[%clk 0:00:20]}  Kf7 {[%clk 0:01:26]} 25. Rxd5 {[%clk 0:00:15]}  Rfe8 {[%clk 0:01:17]} 26. Rd7+ {[%clk 0:00:08]}  Kg8 {[%clk 0:01:16]} 0-1


[Site "https://www.chess.com"]

[Event "Titled Tuesday Blitz May 2 Early 2023"]
[White "Kuchava, Ana"]
[Black "Sanchez, Robert"]
[WhiteFideId "13605348"]
[BlackFideId "2034360"]
[WhiteElo "2001"]
[BlackElo "1966"]
[Result "1-0"]
[Round "09"]
[TimeControl "180+2"]
[Date "2023.05.02"]
[WhiteClock "0:00:11"]
[BlackClock "0:00:43"]

1. d4 {[%clk 0:03:00]}  Nf6 {[%clk 0:02:58]} 2. Nf3 {[%clk 0:02:55]}  e6 {[%clk 0:02:59]} 3. c4 {[%clk 0:02:54]}  b6 {[%clk 0:02:59]} 4. a3 {[%clk 0:02:52]}  Bb7 {[%clk 0:03:00]} 5. Nc3 {[%clk 0:02:50]}  d5 {[%clk 0:03:00]} 6. cxd5 {[%clk 0:02:47]}  Nxd5 {[%clk 0:02:59]} 7. e3 {[%clk 0:02:46]}  Nxc3 {[%clk 0:02:57]} 8. bxc3 {[%clk 0:02:45]}  Nd7 {[%clk 0:02:58]} 9. Bd3 {[%clk 0:02:38]}  Bd6 {[%clk 0:02:58]} 10. O-O {[%clk 0:02:30]}  e5 {[%clk 0:02:51]} 11. e4 {[%clk 0:02:25]}  O-O {[%clk 0:02:47]} 12. Bb2 {[%clk 0:02:19]}  h6 {[%clk 0:02:40]} 13. Re1 {[%clk 0:02:18]}  Re8 {[%clk 0:02:38]} 14. Rc1 {[%clk 0:02:12]}  Qe7 {[%clk 0:02:33]} 15. a4 {[%clk 0:02:05]}  a5 {[%clk 0:02:25]} 16. Qc2 {[%clk 0:01:57]}  Rac8 {[%clk 0:02:04]} 17. h3 {[%clk 0:01:49]}  c5 {[%clk 0:01:49]} 18. d5 {[%clk 0:01:49]}  c4 {[%clk 0:01:49]} 19. Bf1 {[%clk 0:01:48]}  Ba6 {[%clk 0:01:45]} 20. Nd2 {[%clk 0:01:39]}  g6 {[%clk 0:01:42]} 21. Rb1 {[%clk 0:01:38]}  Qh4 {[%clk 0:01:30]} 22. Qc1 {[%clk 0:01:20]}  Nc5 {[%clk 0:01:15]} 23. Qc2 {[%clk 0:01:09]}  Nd3 {[%clk 0:01:12]} 24. Bxd3 {[%clk 0:01:07]}  cxd3 {[%clk 0:01:13]} 25. Qb3 {[%clk 0:01:02]}  Bc5 {[%clk 0:01:13]} 26. Rf1 {[%clk 0:01:01]}  f5 {[%clk 0:01:11]} 27. d6+ {[%clk 0:00:54]}  Kg7 {[%clk 0:01:11]} 28. d7 {[%clk 0:00:54]}  Rcd8 {[%clk 0:01:12]} 29. dxe8=Q {[%clk 0:00:54]}  Rxe8 {[%clk 0:01:13]} 30. exf5 {[%clk 0:00:47]}  gxf5 {[%clk 0:01:08]} 31. c4 {[%clk 0:00:47]}  Bb7 {[%clk 0:00:57]} 32. Qxd3 {[%clk 0:00:45]}  Qg5 {[%clk 0:00:54]} 33. Nf3 {[%clk 0:00:34]}  Qg6 {[%clk 0:00:55]} 34. Qd7+ {[%clk 0:00:23]}  Re7 {[%clk 0:00:55]} 35. Bxe5+ {[%clk 0:00:23]}  Kh7 {[%clk 0:00:52]} 36. Qd2 {[%clk 0:00:12]}  Bxf3 {[%clk 0:00:45]} 37. g3 {[%clk 0:00:10]}  Rxe5 {[%clk 0:00:43]} 38. Rfe1 {[%clk 0:00:11]} 1-0


[Site "https://www.chess.com"]

[Event "Titled Tuesday Blitz May 2 Early 2023"]
[White "Vidit, Santosh Gujrathi"]
[Black "Caruana, Fabiano"]
[WhiteFideId "5029465"]
[BlackFideId "2020009"]
[WhiteElo "2651"]
[BlackElo "2837"]
[Result "0-1"]
[Round "10"]
[TimeControl "180+2"]
[Date "2023.05.03"]
[WhiteClock "0:00:00"]
[BlackClock "0:00:00"]

1. e4 {[%clk 0:00:01]}  c5 {[%clk 0:00:01]} 2. Nf3 {[%clk 0:00:01]}  e6 {[%clk 0:00:01]} 3. d4 {[%clk 0:00:01]}  cxd4 {[%clk 0:00:01]} 4. Nxd4 {[%clk 0:00:01]}  Nc6 {[%clk 0:00:01]} 5. Nc3 {[%clk 0:00:01]}  a6 {[%clk 0:00:01]} 6. Nxc6 {[%clk 0:00:01]}  bxc6 {[%clk 0:00:01]} 7. Qd3 {[%clk 0:00:01]}  d5 {[%clk 0:00:01]} 8. Qg3 {[%clk 0:00:01]}  h5 {[%clk 0:00:01]} 9. h4 {[%clk 0:00:01]}  Nf6 {[%clk 0:00:01]} 10. Bd3 {[%clk 0:00:01]}  Ng4 {[%clk 0:00:01]} 11. Bf4 {[%clk 0:00:01]}  Bc5 {[%clk 0:00:01]} 12. Rf1 {[%clk 0:00:01]}  O-O {[%clk 0:00:01]} 13. O-O-O {[%clk 0:00:01]}  Bd4 {[%clk 0:00:01]} 14. Be2 {[%clk 0:00:01]}  e5 {[%clk 0:00:01]} 15. Bg5 {[%clk 0:00:01]}  Qb6 {[%clk 0:00:01]} 16. Bxg4 {[%clk 0:00:01]}  hxg4 {[%clk 0:00:01]} 17. exd5 {[%clk 0:00:00]}  Rb8 {[%clk 0:00:01]} 18. b3 {[%clk 0:00:00]}  Qb4 {[%clk 0:00:01]} 19. Bd2 {[%clk 0:00:00]}  cxd5 {[%clk 0:00:01]} 20. Kb1 {[%clk 0:00:00]}  Bf5 {[%clk 0:00:00]} 21. Nxd5 {[%clk 0:00:00]}  Qc5 {[%clk 0:00:00]} 22. Ne3 {[%clk 0:00:00]}  Qa3 {[%clk 0:00:00]} 0-1


[Site "https://www.chess.com"]

[Event "Titled Tuesday Blitz May 2 Early 2023"]
[White "Asis Gargatagli, Hipolito"]
[Black "Matlakov, Maxim"]
[WhiteFideId "2260735"]
[BlackFideId "4168003"]
[WhiteElo "2557"]
[BlackElo "2666"]
[Result "1/2-1/2"]
[Round "10"]
[TimeControl "180+2"]
[Date "2023.05.03"]
[WhiteClock "0:00:00"]
[BlackClock "0:00:00"]

1. e4 {[%clk 0:00:01]}  e5 {[%clk 0:00:01]} 2. Nf3 {[%clk 0:00:01]}  Nc6 {[%clk 0:00:01]} 3. Bb5 {[%clk 0:00:01]}  a6 {[%clk 0:00:01]} 4. Ba4 {[%clk 0:00:01]}  Nf6 {[%clk 0:00:01]} 5. d3 {[%clk 0:00:01]}  b5 {[%clk 0:00:01]} 6. Bb3 {[%clk 0:00:01]}  Bc5 {[%clk 0:00:01]} 7. c3 {[%clk 0:00:01]}  d5 {[%clk 0:00:01]} 8. exd5 {[%clk 0:00:01]}  Nxd5 {[%clk 0:00:01]} 9. O-O {[%clk 0:00:01]}  O-O {[%clk 0:00:01]} 10. Re1 {[%clk 0:00:01]}  Bg4 {[%clk 0:00:01]} 11. h3 {[%clk 0:00:01]}  Bh5 {[%clk 0:00:01]} 12. Nbd2 {[%clk 0:00:01]}  Nf4 {[%clk 0:00:01]} 13. d4 {[%clk 0:00:01]}  exd4 {[%clk 0:00:01]} 14. Ne4 {[%clk 0:00:01]}  Bd6 {[%clk 0:00:01]} 15. Ng3 {[%clk 0:00:01]}  Bg6 {[%clk 0:00:01]} 16. Bxf4 {[%clk 0:00:01]}  Bxf4 {[%clk 0:00:01]} 17. cxd4 {[%clk 0:00:01]}  Bxg3 {[%clk 0:00:00]} 18. fxg3 {[%clk 0:00:01]}  Qd6 {[%clk 0:00:00]} 19. Kh2 {[%clk 0:00:00]}  Rad8 {[%clk 0:00:00]} 20. Rc1 {[%clk 0:00:00]}  a5 {[%clk 0:00:00]} 21. a4 {[%clk 0:00:00]}  bxa4 {[%clk 0:00:00]} 22. Bxa4 {[%clk 0:00:00]}  Nxd4 {[%clk 0:00:00]} 23. Nxd4 {[%clk 0:00:00]}  Qxd4 {[%clk 0:00:00]} 24. Qxd4 {[%clk 0:00:00]}  Rxd4 {[%clk 0:00:00]} 25. b3 {[%clk 0:00:00]}  h5 {[%clk 0:00:00]} 26. Rxc7 {[%clk 0:00:00]}  Rd2 {[%clk 0:00:00]} 27. Rc5 {[%clk 0:00:00]}  Kh7 {[%clk 0:00:00]} 28. Rxa5 {[%clk 0:00:00]}  Rc8 {[%clk 0:00:00]} 29. Ra6 {[%clk 0:00:00]}  Rcc2 {[%clk 0:00:00]} 30. Bc6 {[%clk 0:00:00]}  Rb2 {[%clk 0:00:00]} 31. Bf3 {[%clk 0:00:00]}  Rxb3 {[%clk 0:00:00]} 32. Kg1 {[%clk 0:00:00]}  Rbb2 {[%clk 0:00:00]} 33. Ra5 {[%clk 0:00:00]}  Rbc2 {[%clk 0:00:00]} 34. Rae5 {[%clk 0:00:00]}  f6 {[%clk 0:00:00]} 35. R5e2 {[%clk 0:00:00]}  Kh6 {[%clk 0:00:00]} 36. Rxd2 {[%clk 0:00:00]}  Rxd2 {[%clk 0:00:00]} 37. Re2 {[%clk 0:00:00]}  Rd4 {[%clk 0:00:00]} 38. Kf2 {[%clk 0:00:00]}  Bf5 {[%clk 0:00:00]} 39. Re8 {[%clk 0:00:00]}  g6 {[%clk 0:00:00]} 40. Rh8+ {[%clk 0:00:00]}  Kg7 {[%clk 0:00:00]} 41. Rb8 {[%clk 0:00:00]}  Ra4 {[%clk 0:00:00]} 42. h4 {[%clk 0:00:00]}  Be6 {[%clk 0:00:00]} 43. Rb7+ {[%clk 0:00:00]}  Kf8 {[%clk 0:00:00]} 44. Rb8+ {[%clk 0:00:00]}  Ke7 {[%clk 0:00:00]} 45. Rb7+ {[%clk 0:00:00]}  Kd6 {[%clk 0:00:00]} 46. Rb6+ {[%clk 0:00:00]}  Ke5 {[%clk 0:00:00]} 47. Rb5+ {[%clk 0:00:00]}  Kd4 {[%clk 0:00:00]} 48. Rb6 {[%clk 0:00:00]}  Ra2+ {[%clk 0:00:00]} 49. Kg1 {[%clk 0:00:00]}  Ra1+ {[%clk 0:00:00]} 50. Kh2 {[%clk 0:00:00]}  Re1 {[%clk 0:00:00]} 51. Rb4+ {[%clk 0:00:00]}  Kc5 {[%clk 0:00:00]} 52. Re4 {[%clk 0:00:00]}  Rxe4 {[%clk 0:00:00]} 53. Bxe4 {[%clk 0:00:00]}  Bf7 {[%clk 0:00:00]} 54. Kg1 {[%clk 0:00:00]}  Kd4 {[%clk 0:00:00]} 55. Bf3 {[%clk 0:00:00]}  Ke3 {[%clk 0:00:00]} 56. g4 {[%clk 0:00:00]}  hxg4 {[%clk 0:00:00]} 57. Bxg4 {[%clk 0:00:00]}  Kf4 {[%clk 0:00:00]} 58. Be2 {[%clk 0:00:00]}  Kg3 {[%clk 0:00:00]} 59. Bf3 {[%clk 0:00:00]}  Be8 {[%clk 0:00:00]} 60. Be4 {[%clk 0:00:00]}  f5 {[%clk 0:00:00]} 61. Bf3 {[%clk 0:00:00]}  f4 {[%clk 0:00:00]} 62. Be4 {[%clk 0:00:00]}  Bf7 {[%clk 0:00:00]} 63. Bf3 {[%clk 0:00:00]}  Be8 {[%clk 0:00:00]} 64. Be4 {[%clk 0:00:00]}  Kxh4 {[%clk 0:00:00]} 65. Kf2 {[%clk 0:00:00]}  g5 {[%clk 0:00:00]} 66. g3+ {[%clk 0:00:00]}  fxg3+ {[%clk 0:00:00]} 67. Kg1 {[%clk 0:00:00]}  Bd7 {[%clk 0:00:00]} 68. Bd5 {[%clk 0:00:00]}  Kg4 {[%clk 0:00:00]} 69. Be4 {[%clk 0:00:00]}  Kf4 {[%clk 0:00:00]} 70. Bd5 {[%clk 0:00:00]}  Bf5 {[%clk 0:00:00]} 71. Bc4 {[%clk 0:00:00]}  Be4 {[%clk 0:00:00]} 72. Bb5 {[%clk 0:00:00]}  Ke3 {[%clk 0:00:00]} 73. Bc4 {[%clk 0:00:00]}  Kd4 {[%clk 0:00:00]} 74. Be6 {[%clk 0:00:00]}  Ke5 {[%clk 0:00:00]} 75. Bb3 {[%clk 0:00:00]}  g4 {[%clk 0:00:00]} 76. Bd1 {[%clk 0:00:00]}  Kf4 {[%clk 0:00:00]} 77. Ba4 {[%clk 0:00:00]}  Bf3 {[%clk 0:00:00]} 78. Bd7 {[%clk 0:00:00]}  Kg5 {[%clk 0:00:00]} 79. Bc8 {[%clk 0:00:00]}  Kf6 {[%clk 0:00:00]} 80. Bd7 {[%clk 0:00:00]}  Kg5 {[%clk 0:00:00]} 81. Bc8 {[%clk 0:00:00]}  Kf4 {[%clk 0:00:00]} 82. Bd7 {[%clk 0:00:00]}  Be4 {[%clk 0:00:00]} 83. Bc8 {[%clk 0:00:00]}  Bf5 {[%clk 0:00:00]} 84. Bb7 {[%clk 0:00:00]}  Be6 {[%clk 0:00:00]} 85. Bc6 {[%clk 0:00:00]}  Ke5 {[%clk 0:00:00]} 86. Bb7 {[%clk 0:00:00]}  Bd5 {[%clk 0:00:00]} 87. Bc8 {[%clk 0:00:00]}  Kf4 {[%clk 0:00:00]} 88. Bd7 {[%clk 0:00:00]}  Be4 {[%clk 0:00:00]} 1/2-1/2


[Site "https://www.chess.com"]